{"text_format":"1","workbook":"xlsx","n_sheets":2,"sheets":["الرئيسية ","كشف الاسماء "],"not_rendered":{"charts":0,"images":0,"macros":1,"external_links":0,"defined_names":2,"comments":0,"pivot_tables":0},"unopened":[],"bounds":{"document_bytes":16777216,"sheet_cells":100000,"rows_first":2000,"rows_last":500,"rows_between":2000,"halvings":0,"cell_chars":16384,"cell_head_chars":4096},"cells_cut":0,"cells_raw":0,"read":"whole","date_system":"1900"}

{"sheet":"الرئيسية ","index":0,"n_rows":4,"n_cols":49,"rows_kept":4,"cut":false,"hidden":false,"merged":[[1,20,3,20],[1,22,3,22],[1,0,3,0],[0,0,0,5],[1,2,3,2],[1,6,3,6],[1,4,3,4],[0,24,0,27],[0,28,0,35],[1,8,3,8],[0,6,0,23],[1,46,3,46],[0,36,0,39],[0,40,0,47],[1,36,3,36],[1,38,3,38],[1,10,3,10],[1,12,3,12],[1,14,3,14],[1,42,3,42],[1,44,3,44],[1,16,3,16],[1,18,3,18],[1,40,3,40],[1,30,3,30],[1,32,3,32],[1,34,3,34],[1,24,3,24],[1,26,3,26],[1,28,3,28]]}
["الصف التاسع الاساسي",null,null,null,null,null,"الصف العاشر الأساسي",null,null,null,null,null,null,null,null,null,null,null,null,null,null,null,null,null,"الحادي عشر العلمي",null,null,null,"الحادي عشر الادبي ",null,null,null,null,null,null,null,"الثاني عشر العلمي",null,null,null,"الثاني عشر الادبي "]
["الرقم","ا","الرقم","ب","الرقم","ج","الرقم","ا","الرقم","ب","الرقم","ج","الرقم","د","الرقم","هـ","الرقم","و","الرقم","ز","الرقم","ح","الرقم","ط","الرقم","ا","الرقم","ب","الرقم","أ","الرقم","ب","الرقم","ج","الرقم","د","الرقم","ا","الرقم","ب","الرقم","أ","الرقم","ب","الرقم","ج","الرقم","د"]
[null,"عدد طلاب الشعبة ",null,"عدد طلاب الشعبة ",null,"عدد طلاب الشعبة ",null,"عدد طلاب الشعبة ",null,"عدد طلاب الشعبة ",null,"عدد طلاب الشعبة ",null,"عدد طلاب الشعبة ",null,"عدد طلاب الشعبة ",null,"عدد طلاب الشعبة ",null,"عدد طلاب الشعبة ",null,"عدد طلاب الشعبة ",null,"عدد طلاب الشعبة ",null,"عدد طلاب الشعبة ",null,"عدد طلاب الشعبة ",null,"عدد طلاب الشعبة ",null,"عدد طلاب الشعبة ",null,"عدد طلاب الشعبة ",null,"عدد طلاب الشعبة ",null,"عدد طلاب الشعبة ",null,"عدد طلاب الشعبة ",null,"عدد طلاب الشعبة ",null,"عدد طلاب الشعبة ",null,"عدد طلاب الشعبة ",null,"عدد طلاب الشعبة "]
[null,{"$f":"COUNTA(B5:B69)","v":0},null,{"$f":"COUNTA(D5:D69)","v":0},null,0,null,{"$f":"COUNTA(H5:H69)","v":0},null,{"$f":"COUNTA(J5:J69)","v":0},null,0,null,0,null,0,null,0,null,{"$f":"COUNTA(T5:T69)","v":0},null,0,null,0,null,{"$f":"COUNTA(Z5:Z69)","v":0},null,{"$f":"COUNTA(AB5:AB69)","v":0},null,{"$f":"COUNTA(AD5:AD69)","v":0},null,{"$f":"COUNTA(AF5:AF69)","v":0},null,{"$f":"COUNTA(AH5:AH69)","v":0},null,{"$f":"COUNTA(AJ5:AJ69)","v":0},null,{"$f":"COUNTA(AL5:AL69)","v":0},null,{"$f":"COUNTA(AN5:AN69)","v":0},null,{"$f":"COUNTA(AP5:AP69)","v":0},null,{"$f":"COUNTA(AR5:AR69)","v":0},null,{"$f":"COUNTA(AT5:AT69)","v":0},null,{"$f":"COUNTA(AV5:AV69)","v":0},{"$f":"SUM(B4:AV4)","v":0}]

{"sheet":"كشف الاسماء ","index":1,"n_rows":29,"n_cols":9,"rows_kept":29,"cut":false,"hidden":false,"merged":[[1,0,1,5],[0,0,0,5]]}
["مدرسة \n للعام  2021  /2022",null,null,null,null,null,"العاشر أ","الصف ","الشعبة "]
["اسماء الطلبة للصف ",null,null,null,null,null,"يتم من هنا اختيار الشعبة ","العاشر أ"]
[null," اسم مربي الصف :",null,null,null,null,"ثم يقوم يترحيل الاسماء الخاصة بالشعبة الى شيت الرئيسية ","العاشر ب"]
["رقم","الاسم","رقم","الاسم","رقم","الاسم",null,"العاشر ج"]
[1,null,26,null,51,null,null,"الثاني عشر الادبي أ"]
[2,null,27,null,52,null,null,"الثاني عشر الادبي ب"]
[3,null,28,null,53,null,null,"الثاني عشر الادبي ج"]
[4,null,29,null,54,null,null,"الثاني عشر الادبي د "]
[5,null,30,null,55,null,null,"الثاني عشر الادبي ز"]
[6,null,31,null,56,null,null,"الثاني عشر الادبي هـ"]
[7,null,32,null,57,null,null,"الثاني عشر الادبي و"]
[8,null,33,null,58,null,null,"الثاني عشر العلمي ا"]
[9,null,34,null,59,null,null,"الثاني عشر العلمي ب"]
[10,null,35,null,60,null,null,"الثاني عشر العلمي ج"]
[11,null,36,null,61,null,null,"الحادي عشر الادبي أ"]
[12,null,37,null,62,null,null,"الحادي عشر الادبي ب"]
[13,null,38,null,63,null,null,"الحادي عشر الادبي ج"]
[14,null,39,null,64,null,null,"الحادي عشر الادبي د"]
[15,null,40,null,65,null,null,"الحادي عشر الادبي هـ"]
[16,null,41,null,66,null,null,"الحادي عشر الادبي و"]
[17,null,42,null,67,null,null,"الحادي عشر العلمي أ"]
[18,null,43,null,68,null,null,"الحادي عشر العلمي ب"]
[19,null,44,null,69,null,null,"الحادي عشر العلمي ج"]
[20,null,45,null,70,null,null,"الحادي عشر العلمي د"]
[21,null,46,null,71,null,null,"العاشر د"]
[22,null,47,null,72]
[23,null,48,null,73]
[24,null,49,null,74]
[25,null,50,null,75]